[Event "Titled Tuesday Blitz January 31 Early 2023"]
[White "Schekachikhin, Maksim"]
[Black "Filgueiras, Nathan Felipe"]
[WhiteFideId "24177830"]
[BlackFideId "2188562"]
[WhiteElo "2371"]
[BlackElo "2319"]
[Result "1-0"]
[Round "02"]
[TimeControl "180+2"]
[Date "2023.01.31"]
[WhiteClock "0:00:12"]
[BlackClock "0:00:08"]

1. Nf3 {[%clk 0:02:56]}  Nf6 {[%clk 0:02:48]} 2. c4 {[%clk 0:02:56]}  e6 {[%clk 0:02:48]} 3. Nc3 {[%clk 0:02:56]}  d5 {[%clk 0:02:47]} 4. e3 {[%clk 0:02:55]}  Be7 {[%clk 0:02:45]} 5. b3 {[%clk 0:02:55]}  O-O {[%clk 0:02:44]} 6. Bb2 {[%clk 0:02:55]}  c6 {[%clk 0:02:39]} 7. d4 {[%clk 0:02:53]}  Nbd7 {[%clk 0:02:38]} 8. Bd3 {[%clk 0:02:52]}  b6 {[%clk 0:02:39]} 9. O-O {[%clk 0:02:52]}  a5 {[%clk 0:02:39]} 10. Qc2 {[%clk 0:02:50]}  Ba6 {[%clk 0:02:39]} 11. e4 {[%clk 0:02:48]}  dxe4 {[%clk 0:02:38]} 12. Nxe4 {[%clk 0:02:48]}  Qc7 {[%clk 0:02:35]} 13. Rfe1 {[%clk 0:02:45]}  h6 {[%clk 0:02:33]} 14. Rad1 {[%clk 0:02:44]}  Nxe4 {[%clk 0:02:32]} 15. Bxe4 {[%clk 0:02:44]}  Nf6 {[%clk 0:02:32]} 16. Bd3 {[%clk 0:02:44]}  Rad8 {[%clk 0:02:29]} 17. Ne5 {[%clk 0:02:43]}  c5 {[%clk 0:02:24]} 18. dxc5 {[%clk 0:02:40]}  Bxc5 {[%clk 0:02:23]} 19. Qe2 {[%clk 0:02:40]}  Bb7 {[%clk 0:02:19]} 20. Ng4 {[%clk 0:02:39]}  Nh7 {[%clk 0:01:32]} 21. h4 {[%clk 0:02:01]}  Qc6 {[%clk 0:01:17]} 22. Nxh6+ {[%clk 0:01:59]}  Kh8 {[%clk 0:01:09]} 23. Qg4 {[%clk 0:01:57]}  f6 {[%clk 0:01:05]} 24. Rxe6 {[%clk 0:01:21]}  Qd7 {[%clk 0:00:55]} 25. Bc2 {[%clk 0:01:10]}  Qc7 {[%clk 0:00:47]} 26. Nf5 {[%clk 0:00:30]}  Rxd1+ {[%clk 0:00:41]} 27. Qxd1 {[%clk 0:00:31]}  Rd8 {[%clk 0:00:34]} 28. Qe2 {[%clk 0:00:31]}  Qd7 {[%clk 0:00:31]} 29. h5 {[%clk 0:00:26]}  Nf8 {[%clk 0:00:24]} 30. Re7 {[%clk 0:00:23]}  Qd2 {[%clk 0:00:22]} 31. h6 {[%clk 0:00:21]}  Qxe2 {[%clk 0:00:19]} 32. hxg7+ {[%clk 0:00:20]}  Kg8 {[%clk 0:00:19]} 33. gxf8=Q+ {[%clk 0:00:20]}  Kxf8 {[%clk 0:00:20]} 34. Rxe2 {[%clk 0:00:20]}  Bc6 {[%clk 0:00:20]} 35. Bxf6 {[%clk 0:00:19]}  Rd7 {[%clk 0:00:19]} 36. Nh4 {[%clk 0:00:18]}  Kf7 {[%clk 0:00:19]} 37. Bc3 {[%clk 0:00:17]}  Rd8 {[%clk 0:00:17]} 38. Bg6+ {[%clk 0:00:17]}  Kf8 {[%clk 0:00:16]} 39. Bf6 {[%clk 0:00:15]}  Rd1+ {[%clk 0:00:17]} 40. Kh2 {[%clk 0:00:16]}  Bd6+ {[%clk 0:00:17]} 41. Be5 {[%clk 0:00:15]}  Bc5 {[%clk 0:00:17]} 42. Bg3 {[%clk 0:00:15]}  Rd7 {[%clk 0:00:15]} 43. Be4 {[%clk 0:00:15]}  Bxe4 {[%clk 0:00:14]} 44. Rxe4 {[%clk 0:00:15]}  Rd2 {[%clk 0:00:14]} 45. a4 {[%clk 0:00:12]}  Rd3 {[%clk 0:00:13]} 46. Ng6+ {[%clk 0:00:11]}  Kg7 {[%clk 0:00:12]} 47. Ne5 {[%clk 0:00:12]}  Rxb3 {[%clk 0:00:13]} 48. Nd7 {[%clk 0:00:12]}  Rb4 {[%clk 0:00:07]} 49. Nxc5 {[%clk 0:00:11]}  bxc5 {[%clk 0:00:08]} 50. Bd6 {[%clk 0:00:11]}  Rxa4 {[%clk 0:00:08]} 51. Bxc5 {[%clk 0:00:12]}  Ra1 {[%clk 0:00:08]} 52. Bd4+ {[%clk 0:00:12]} 1-0


[Site "https://www.chess.com"]

[Event "Titled Tuesday Blitz January 31 Early 2023"]
[White "Battlecruiser_Operational"]
[Black "Jobava, Baadur"]
[BlackFideId "13601520"]
[WhiteElo "2422"]
[BlackElo "2578"]
[Result "0-1"]
[Round "02"]
[TimeControl "180+2"]
[Date "2023.01.31"]
[WhiteClock "0:00:10"]
[BlackClock "0:02:27"]

1. d4 {[%clk 0:03:00]}  Nf6 {[%clk 0:02:59]} 2. c4 {[%clk 0:02:59]}  c5 {[%clk 0:03:00]} 3. d5 {[%clk 0:02:59]}  g6 {[%clk 0:03:01]} 4. Nc3 {[%clk 0:02:58]}  Bg7 {[%clk 0:03:01]} 5. e4 {[%clk 0:02:58]}  d6 {[%clk 0:03:02]} 6. Nf3 {[%clk 0:02:58]}  O-O {[%clk 0:03:03]} 7. Be2 {[%clk 0:02:58]}  e6 {[%clk 0:03:03]} 8. Nd2 {[%clk 0:02:54]}  exd5 {[%clk 0:03:03]} 9. cxd5 {[%clk 0:02:55]}  Re8 {[%clk 0:03:04]} 10. O-O {[%clk 0:02:55]}  a6 {[%clk 0:03:04]} 11. a4 {[%clk 0:02:53]}  Nbd7 {[%clk 0:03:05]} 12. Qc2 {[%clk 0:02:45]}  Rb8 {[%clk 0:03:05]} 13. a5 {[%clk 0:02:27]}  Ne5 {[%clk 0:03:00]} 14. h3 {[%clk 0:02:19]}  g5 {[%clk 0:03:00]} 15. Nc4 {[%clk 0:02:14]}  Nfd7 {[%clk 0:03:00]} 16. Nxd6 {[%clk 0:02:12]}  Rf8 {[%clk 0:03:00]} 17. f4 {[%clk 0:01:59]}  gxf4 {[%clk 0:02:58]} 18. Bxf4 {[%clk 0:02:00]}  Ng6 {[%clk 0:02:56]} 19. Bh2 {[%clk 0:01:55]}  Be5 {[%clk 0:02:55]} 20. Nxc8 {[%clk 0:01:50]}  Bxh2+ {[%clk 0:02:54]} 21. Kxh2 {[%clk 0:01:51]}  Rxc8 {[%clk 0:02:54]} 22. Bg4 {[%clk 0:01:48]}  Qc7+ {[%clk 0:02:51]} 23. Kh1 {[%clk 0:01:41]}  Rcd8 {[%clk 0:02:50]} 24. Rad1 {[%clk 0:01:31]}  Nde5 {[%clk 0:02:50]} 25. Bf5 {[%clk 0:01:30]}  c4 {[%clk 0:02:50]} 26. Qa4 {[%clk 0:01:28]}  Nd3 {[%clk 0:02:48]} 27. Rd2 {[%clk 0:01:21]}  Nge5 {[%clk 0:02:43]} 28. b4 {[%clk 0:00:48]}  Kh8 {[%clk 0:02:41]} 29. b5 {[%clk 0:00:45]}  Rg8 {[%clk 0:02:42]} 30. Qa3 {[%clk 0:00:32]}  Rd6 {[%clk 0:02:35]} 31. bxa6 {[%clk 0:00:26]}  bxa6 {[%clk 0:02:35]} 32. Rb1 {[%clk 0:00:26]}  Rh6 {[%clk 0:02:33]} 33. Ne2 {[%clk 0:00:15]}  Nf3 {[%clk 0:02:27]} 34. Rxd3 {[%clk 0:00:10]}  Qh2# {[%clk 0:02:27]} 0-1


[Site "https://www.chess.com"]

[Event "Titled Tuesday Blitz January 31 Early 2023"]
[White "Howell, David W L"]
[Black "Sai Han Thiha"]
[WhiteFideId "410608"]
[BlackFideId "13012290"]
[WhiteElo "2677"]
[BlackElo "2070"]
[Result "1-0"]
[Round "02"]
[TimeControl "180+2"]
[Date "2023.01.31"]
[WhiteClock "0:01:23"]
[BlackClock "0:00:18"]

1. e4 {[%clk 0:03:00]}  c6 {[%clk 0:03:00]} 2. c4 {[%clk 0:02:57]}  d5 {[%clk 0:03:00]} 3. e5 {[%clk 0:02:53]}  d4 {[%clk 0:02:31]} 4. d3 {[%clk 0:02:49]}  c5 {[%clk 0:02:30]} 5. Nd2 {[%clk 0:02:47]}  Nc6 {[%clk 0:02:31]} 6. f4 {[%clk 0:02:48]}  Nh6 {[%clk 0:02:20]} 7. Ne4 {[%clk 0:02:42]}  Bg4 {[%clk 0:02:11]} 8. Be2 {[%clk 0:02:37]}  e6 {[%clk 0:01:56]} 9. Bxg4 {[%clk 0:02:29]}  Qh4+ {[%clk 0:01:56]} 10. Nf2 {[%clk 0:02:29]}  Nb4 {[%clk 0:01:46]} 11. Be2 {[%clk 0:02:19]}  Nf5 {[%clk 0:01:41]} 12. Nf3 {[%clk 0:02:19]}  Qd8 {[%clk 0:01:40]} 13. Ne4 {[%clk 0:02:20]}  Be7 {[%clk 0:01:38]} 14. O-O {[%clk 0:02:18]}  h5 {[%clk 0:01:38]} 15. Bd2 {[%clk 0:02:18]}  Nc6 {[%clk 0:01:38]} 16. Ng3 {[%clk 0:02:18]}  Nh6 {[%clk 0:01:35]} 17. Nxh5 {[%clk 0:02:18]}  Kf8 {[%clk 0:01:33]} 18. Ng3 {[%clk 0:02:17]}  Bh4 {[%clk 0:01:23]} 19. Be1 {[%clk 0:02:13]}  Ng4 {[%clk 0:01:19]} 20. Ne4 {[%clk 0:02:02]}  Ne3 {[%clk 0:01:13]} 21. Bxh4 {[%clk 0:01:57]}  Rxh4 {[%clk 0:01:02]} 22. Qe1 {[%clk 0:01:51]}  Rxf4 {[%clk 0:00:54]} 23. Qg3 {[%clk 0:01:47]}  Rf5 {[%clk 0:00:40]} 24. Rf2 {[%clk 0:01:28]}  Ne7 {[%clk 0:00:36]} 25. Nd6 {[%clk 0:01:24]}  Rh5 {[%clk 0:00:30]} 26. Nxd4 {[%clk 0:01:24]}  N7f5 {[%clk 0:00:18]} 27. N4xf5 {[%clk 0:01:23]}  Nxf5 {[%clk 0:00:18]} 28. Nxf5 {[%clk 0:01:23]}  exf5 {[%clk 0:00:18]} 29. Bxh5 {[%clk 0:01:23]} 1-0


[Site "https://www.chess.com"]

[Event "Titled Tuesday Blitz January 31 Early 2023"]
[White "Bachmann, Axel"]
[Black "Gjestemoen-VonHirsch, Andre"]
[WhiteFideId "3700488"]
[BlackFideId "1539531"]
[WhiteElo "2604"]
[BlackElo "2314"]
[Result "1-0"]
[Round "02"]
[TimeControl "180+2"]
[Date "2023.01.31"]
[WhiteClock "0:00:46"]
[BlackClock "0:00:17"]

1. Nf3 {[%clk 0:02:16]}  d5 {[%clk 0:02:50]} 2. e3 {[%clk 0:02:16]}  Nf6 {[%clk 0:02:44]} 3. c4 {[%clk 0:02:16]}  c6 {[%clk 0:02:29]} 4. Nc3 {[%clk 0:02:15]}  Bf5 {[%clk 0:02:27]} 5. cxd5 {[%clk 0:02:03]}  cxd5 {[%clk 0:02:26]} 6. Qb3 {[%clk 0:02:04]}  Qd7 {[%clk 0:02:19]} 7. Ne5 {[%clk 0:01:53]}  Qc7 {[%clk 0:02:15]} 8. Nxd5 {[%clk 0:01:22]}  Qxe5 {[%clk 0:02:00]} 9. Nxf6+ {[%clk 0:01:21]}  exf6 {[%clk 0:01:34]} 10. Qxb7 {[%clk 0:01:22]}  Bc5 {[%clk 0:01:29]} 11. Bb5+ {[%clk 0:01:19]}  Kf8 {[%clk 0:01:19]} 12. Qxa8 {[%clk 0:01:10]}  Be4 {[%clk 0:01:18]} 13. f4 {[%clk 0:00:54]}  Qe8 {[%clk 0:00:36]} 14. Bxe8 {[%clk 0:00:52]}  Bxa8 {[%clk 0:00:36]} 15. Bb5 {[%clk 0:00:50]}  Bxg2 {[%clk 0:00:36]} 16. Rg1 {[%clk 0:00:51]}  Bc6 {[%clk 0:00:33]} 17. Be2 {[%clk 0:00:48]}  g6 {[%clk 0:00:31]} 18. b4 {[%clk 0:00:48]}  Bxb4 {[%clk 0:00:26]} 19. Rb1 {[%clk 0:00:49]}  Bd6 {[%clk 0:00:26]} 20. Ba3 {[%clk 0:00:48]}  Bxa3 {[%clk 0:00:26]} 21. Rxb8+ {[%clk 0:00:48]}  Kg7 {[%clk 0:00:26]} 22. Rxh8 {[%clk 0:00:47]}  Kxh8 {[%clk 0:00:27]} 23. Kf2 {[%clk 0:00:47]}  Bd5 {[%clk 0:00:22]} 24. Rb1 {[%clk 0:00:47]}  Bc5 {[%clk 0:00:18]} 25. a4 {[%clk 0:00:46]}  Kg7 {[%clk 0:00:17]} 26. Rb5 {[%clk 0:00:46]} 1-0


[Site "https://www.chess.com"]

[Event "Titled Tuesday Blitz January 31 Early 2023"]
[White "Melikhov, Evgeny V."]
[Black "Gurel, Ediz"]
[WhiteFideId "4122046"]
[BlackFideId "44507356"]
[WhiteElo "2269"]
[BlackElo "2499"]
[Result "0-1"]
[Round "02"]
[TimeControl "180+2"]
[Date "2023.01.31"]
[WhiteClock "0:00:05"]
[BlackClock "0:00:10"]

1. d4 {[%clk 0:02:54]}  Nf6 {[%clk 0:02:56]} 2. c4 {[%clk 0:02:54]}  e6 {[%clk 0:02:56]} 3. Nc3 {[%clk 0:02:54]}  d5 {[%clk 0:02:57]} 4. cxd5 {[%clk 0:02:54]}  exd5 {[%clk 0:02:58]} 5. Bg5 {[%clk 0:02:53]}  Be7 {[%clk 0:02:58]} 6. e3 {[%clk 0:02:53]}  O-O {[%clk 0:02:59]} 7. Bd3 {[%clk 0:02:52]}  h6 {[%clk 0:02:59]} 8. Bh4 {[%clk 0:02:52]}  c6 {[%clk 0:02:58]} 9. Qc2 {[%clk 0:02:49]}  Be6 {[%clk 0:02:54]} 10. Nf3 {[%clk 0:02:40]}  Nbd7 {[%clk 0:02:54]} 11. O-O {[%clk 0:02:40]}  Re8 {[%clk 0:02:47]} 12. h3 {[%clk 0:02:36]}  Rc8 {[%clk 0:02:43]} 13. Ne5 {[%clk 0:02:35]}  c5 {[%clk 0:02:24]} 14. f4 {[%clk 0:02:28]}  cxd4 {[%clk 0:02:21]} 15. exd4 {[%clk 0:02:27]}  Ne4 {[%clk 0:02:15]} 16. Bxe7 {[%clk 0:02:19]}  Qxe7 {[%clk 0:02:16]} 17. f5 {[%clk 0:01:59]}  Nxe5 {[%clk 0:01:56]} 18. fxe6 {[%clk 0:01:56]}  Nxc3 {[%clk 0:01:55]} 19. bxc3 {[%clk 0:01:41]}  fxe6 {[%clk 0:01:29]} 20. dxe5 {[%clk 0:01:41]}  Rf8 {[%clk 0:01:27]} 21. Bh7+ {[%clk 0:01:33]}  Kh8 {[%clk 0:01:26]} 22. Bg6 {[%clk 0:01:30]}  Qg5 {[%clk 0:01:26]} 23. Rxf8+ {[%clk 0:01:08]}  Rxf8 {[%clk 0:01:27]} 24. Re1 {[%clk 0:01:07]}  Qg3 {[%clk 0:01:02]} 25. Re2 {[%clk 0:01:06]}  Rc8 {[%clk 0:00:53]} 26. Qd3 {[%clk 0:01:03]}  Qg5 {[%clk 0:00:52]} 27. Rf2 {[%clk 0:00:51]}  Qxe5 {[%clk 0:00:52]} 28. Qd4 {[%clk 0:00:49]}  Qg5 {[%clk 0:00:46]} 29. Bc2 {[%clk 0:00:33]}  Qg3 {[%clk 0:00:25]} 30. Qf4 {[%clk 0:00:30]}  Qxf4 {[%clk 0:00:24]} 31. Rxf4 {[%clk 0:00:30]}  Kg8 {[%clk 0:00:21]} 32. Bg6 {[%clk 0:00:30]}  Rxc3 {[%clk 0:00:17]} 33. Bf7+ {[%clk 0:00:27]}  Kh7 {[%clk 0:00:18]} 34. Bxe6 {[%clk 0:00:27]}  Rc1+ {[%clk 0:00:16]} 35. Kh2 {[%clk 0:00:26]}  Rd1 {[%clk 0:00:17]} 36. Rf7 {[%clk 0:00:25]}  b6 {[%clk 0:00:16]} 37. Bf5+ {[%clk 0:00:25]}  Kg8 {[%clk 0:00:15]} 38. Bg6 {[%clk 0:00:25]}  d4 {[%clk 0:00:06]} 39. Rd7 {[%clk 0:00:17]}  Kf8 {[%clk 0:00:05]} 40. Rf7+ {[%clk 0:00:17]}  Kg8 {[%clk 0:00:05]} 41. Re7 {[%clk 0:00:16]}  Rf1 {[%clk 0:00:06]} 42. Rd7 {[%clk 0:00:13]}  Rf6 {[%clk 0:00:04]} 43. Rd8+ {[%clk 0:00:13]}  Rf8 {[%clk 0:00:04]} 44. Rxd4 {[%clk 0:00:13]}  b5 {[%clk 0:00:04]} 45. Rd7 {[%clk 0:00:12]}  a6 {[%clk 0:00:04]} 46. Rb7 {[%clk 0:00:12]}  Rd8 {[%clk 0:00:02]} 47. Re7 {[%clk 0:00:11]}  Kf8 {[%clk 0:00:02]} 48. Rf7+ {[%clk 0:00:10]}  Kg8 {[%clk 0:00:03]} 49. Ra7 {[%clk 0:00:10]}  Kf8 {[%clk 0:00:03]} 50. Rxa6 {[%clk 0:00:10]}  Ke7 {[%clk 0:00:04]} 51. Rb6 {[%clk 0:00:10]}  Rd5 {[%clk 0:00:04]} 52. Rb7+ {[%clk 0:00:10]}  Kf6 {[%clk 0:00:04]} 53. Be4 {[%clk 0:00:10]}  Rd2 {[%clk 0:00:04]} 54. Rxb5 {[%clk 0:00:06]}  Rxa2 {[%clk 0:00:04]} 55. Rf5+ {[%clk 0:00:06]}  Ke7 {[%clk 0:00:04]} 56. Rf7+ {[%clk 0:00:04]}  Ke6 {[%clk 0:00:03]} 57. Rxg7 {[%clk 0:00:04]}  Ra4 {[%clk 0:00:04]} 58. Bf3 {[%clk 0:00:04]}  Kf6 {[%clk 0:00:05]} 59. Rh7 {[%clk 0:00:04]}  Ra1 {[%clk 0:00:06]} 60. Rxh6+ {[%clk 0:00:04]}  Kg5 {[%clk 0:00:07]} 61. Rb6 {[%clk 0:00:04]}  Ra4 {[%clk 0:00:05]} 62. Rb5+ {[%clk 0:00:05]}  Kh6 {[%clk 0:00:05]} 63. Rc5 {[%clk 0:00:05]}  Ra2 {[%clk 0:00:05]} 64. Kg3 {[%clk 0:00:05]}  Ra4 {[%clk 0:00:04]} 65. h4 {[%clk 0:00:05]}  Rb4 {[%clk 0:00:04]} 66. Rd5 {[%clk 0:00:05]}  Kg6 {[%clk 0:00:04]} 67. Re5 {[%clk 0:00:05]}  Kf6 {[%clk 0:00:05]} 68. Re4 {[%clk 0:00:06]}  Rb1 {[%clk 0:00:05]} 69. Kf4 {[%clk 0:00:06]}  Rh1 {[%clk 0:00:05]} 70. h5 {[%clk 0:00:05]}  Kg7 {[%clk 0:00:05]} 71. g4 {[%clk 0:00:05]}  Rg1 {[%clk 0:00:02]} 72. g5 {[%clk 0:00:06]}  Rf1 {[%clk 0:00:01]} 73. Re7+ {[%clk 0:00:06]}  Kf8 {[%clk 0:00:02]} 74. Ra7 {[%clk 0:00:06]}  Ra1 {[%clk 0:00:02]} 75. Ke5 {[%clk 0:00:05]}  Rxa7 {[%clk 0:00:03]} 76. h6 {[%clk 0:00:05]}  Kg8 {[%clk 0:00:03]} 77. Be4 {[%clk 0:00:05]}  Ra5+ {[%clk 0:00:03]} 78. Bd5+ {[%clk 0:00:04]}  Kh7 {[%clk 0:00:03]} 79. Kd4 {[%clk 0:00:03]}  Kg6 {[%clk 0:00:03]} 80. Be4+ {[%clk 0:00:03]}  Kf7 {[%clk 0:00:02]} 81. h7 {[%clk 0:00:03]}  Kg7 {[%clk 0:00:03]} 82. g6 {[%clk 0:00:03]}  Rh5 {[%clk 0:00:03]} 83. Bd3 {[%clk 0:00:03]}  Rh6 {[%clk 0:00:04]} 84. Kc3 {[%clk 0:00:03]}  Rh4 {[%clk 0:00:05]} 85. Kd2 {[%clk 0:00:03]}  Rf4 {[%clk 0:00:05]} 86. Bc2 {[%clk 0:00:03]}  Rf6 {[%clk 0:00:06]} 87. Ke3 {[%clk 0:00:03]}  Rc6 {[%clk 0:00:06]} 88. Kd2 {[%clk 0:00:03]}  Rc7 {[%clk 0:00:06]} 89. Bd3 {[%clk 0:00:03]}  Rd7 {[%clk 0:00:07]} 90. Ke3 {[%clk 0:00:04]}  Rd8 {[%clk 0:00:08]} 91. Kd2 {[%clk 0:00:04]}  Rf8 {[%clk 0:00:08]} 92. Ke3 {[%clk 0:00:04]}  Rf6 {[%clk 0:00:09]} 93. Kd2 {[%clk 0:00:05]}  Rf4 {[%clk 0:00:09]} 94. Ke3 {[%clk 0:00:05]}  Rh4 {[%clk 0:00:10]} 95. Kd2 {[%clk 0:00:05]}  Rh3 {[%clk 0:00:10]} 96. Kc3 {[%clk 0:00:05]}  Rf3 {[%clk 0:00:10]} 97. Kd4 {[%clk 0:00:05]}  Rf6 {[%clk 0:00:10]} 0-1


[Site "https://www.chess.com"]

[Event "Titled Tuesday Blitz January 31 Early 2023"]
[White "Vasques, Antonio Pedro Freixial"]
[Black "Kazakouski, Valery"]
[WhiteFideId "1908332"]
[BlackFideId "13507443"]
[WhiteElo "2214"]
[BlackElo "2539"]
[Result "0-1"]
[Round "02"]
[TimeControl "180+2"]
[Date "2023.01.31"]
[WhiteClock "0:00:09"]
[BlackClock "0:00:09"]

1. e4 {[%clk 0:02:57]}  c5 {[%clk 0:02:59]} 2. Nf3 {[%clk 0:02:57]}  a6 {[%clk 0:03:00]} 3. c4 {[%clk 0:02:55]}  Nc6 {[%clk 0:03:00]} 4. Nc3 {[%clk 0:02:54]}  Nd4 {[%clk 0:03:00]} 5. d3 {[%clk 0:02:51]}  d6 {[%clk 0:03:00]} 6. Be3 {[%clk 0:02:50]}  e5 {[%clk 0:02:59]} 7. Nd5 {[%clk 0:02:42]}  b5 {[%clk 0:02:59]} 8. Nxd4 {[%clk 0:02:33]}  cxd4 {[%clk 0:02:57]} 9. Bg5 {[%clk 0:02:27]}  Qxg5 {[%clk 0:02:45]} 10. Nc7+ {[%clk 0:02:27]}  Kd7 {[%clk 0:02:45]} 11. Nxa8 {[%clk 0:02:28]}  Qd8 {[%clk 0:02:46]} 12. cxb5 {[%clk 0:02:27]}  axb5 {[%clk 0:02:40]} 13. b4 {[%clk 0:02:16]}  Bb7 {[%clk 0:02:40]} 14. Qb3 {[%clk 0:02:15]}  Bxa8 {[%clk 0:02:32]} 15. a4 {[%clk 0:02:11]}  d5 {[%clk 0:02:13]} 16. axb5 {[%clk 0:02:08]}  Nf6 {[%clk 0:02:12]} 17. Ra7+ {[%clk 0:02:05]}  Ke6 {[%clk 0:02:10]} 18. g3 {[%clk 0:01:52]}  g5 {[%clk 0:02:07]} 19. Bg2 {[%clk 0:01:46]}  Bd6 {[%clk 0:01:51]} 20. Ke2 {[%clk 0:01:34]}  Qb6 {[%clk 0:01:43]} 21. Rha1 {[%clk 0:01:31]}  Bb7 {[%clk 0:01:36]} 22. exd5+ {[%clk 0:01:16]}  Kf5 {[%clk 0:01:31]} 23. Be4+ {[%clk 0:01:14]}  Nxe4 {[%clk 0:01:27]} 24. dxe4+ {[%clk 0:01:15]}  Kg6 {[%clk 0:01:27]} 25. Kf1 {[%clk 0:01:00]}  Qxb5+ {[%clk 0:01:24]} 26. Kg2 {[%clk 0:01:01]}  Rb8 {[%clk 0:01:23]} 27. Qf3 {[%clk 0:01:00]}  Qd7 {[%clk 0:01:14]} 28. h4 {[%clk 0:00:26]}  g4 {[%clk 0:01:12]} 29. Qe2 {[%clk 0:00:23]}  h5 {[%clk 0:01:11]} 30. R1a6 {[%clk 0:00:21]}  Bxa6 {[%clk 0:01:05]} 31. Qxa6 {[%clk 0:00:22]}  Qd8 {[%clk 0:01:03]} 32. b5 {[%clk 0:00:22]}  Qf6 {[%clk 0:00:59]} 33. Rd7 {[%clk 0:00:19]}  Bc5 {[%clk 0:00:51]} 34. Qc6 {[%clk 0:00:14]}  Qxc6 {[%clk 0:00:34]} 35. bxc6 {[%clk 0:00:15]}  d3 {[%clk 0:00:31]} 36. c7 {[%clk 0:00:15]}  Rc8 {[%clk 0:00:30]} 37. Kf1 {[%clk 0:00:15]}  Kf6 {[%clk 0:00:20]} 38. d6 {[%clk 0:00:15]}  Bb6 {[%clk 0:00:11]} 39. Re7 {[%clk 0:00:10]}  Bxc7 {[%clk 0:00:11]} 40. Rxc7 {[%clk 0:00:10]}  Rd8 {[%clk 0:00:11]} 41. d7 {[%clk 0:00:09]}  Ke7 {[%clk 0:00:11]} 42. Ke1 {[%clk 0:00:10]}  Rxd7 {[%clk 0:00:11]} 43. Rxd7+ {[%clk 0:00:11]}  Kxd7 {[%clk 0:00:11]} 44. Kd2 {[%clk 0:00:12]}  Kc6 {[%clk 0:00:12]} 45. Kxd3 {[%clk 0:00:13]}  Kb5 {[%clk 0:00:12]} 46. f4 {[%clk 0:00:12]}  f6 {[%clk 0:00:10]} 47. f5 {[%clk 0:00:10]}  Kb4 {[%clk 0:00:10]} 48. Ke2 {[%clk 0:00:09]}  Kc4 {[%clk 0:00:09]} 49. Kf2 {[%clk 0:00:09]}  Kd3 {[%clk 0:00:09]} 0-1


[Site "https://www.chess.com"]

[Event "Titled Tuesday Blitz January 31 Early 2023"]
[White "Ansh M Shah"]
[Black "Girel, Joseph"]
[WhiteFideId "25033379"]
[BlackFideId "36033561"]
[WhiteElo "2171"]
[BlackElo "2395"]
[Result "0-1"]
[Round "02"]
[TimeControl "180+2"]
[Date "2023.01.31"]
[WhiteClock "0:00:44"]
[BlackClock "0:00:45"]

1. d4 {[%clk 0:03:00]}  d6 {[%clk 0:02:58]} 2. c4 {[%clk 0:02:54]}  e5 {[%clk 0:02:57]} 3. g3 {[%clk 0:02:54]}  exd4 {[%clk 0:02:56]} 4. Qxd4 {[%clk 0:02:54]}  Nc6 {[%clk 0:02:56]} 5. Qd1 {[%clk 0:02:54]}  g6 {[%clk 0:02:56]} 6. Bg2 {[%clk 0:02:55]}  Bg7 {[%clk 0:02:55]} 7. Nf3 {[%clk 0:02:56]}  Nge7 {[%clk 0:02:55]} 8. O-O {[%clk 0:02:56]}  O-O {[%clk 0:02:56]} 9. Nc3 {[%clk 0:02:56]}  Be6 {[%clk 0:02:55]} 10. Nd2 {[%clk 0:02:54]}  d5 {[%clk 0:02:54]} 11. cxd5 {[%clk 0:02:54]}  Nxd5 {[%clk 0:02:55]} 12. Nxd5 {[%clk 0:02:46]}  Bxd5 {[%clk 0:02:55]} 13. Nf3 {[%clk 0:02:43]}  Re8 {[%clk 0:02:53]} 14. a3 {[%clk 0:02:42]}  a5 {[%clk 0:02:45]} 15. Bg5 {[%clk 0:02:27]}  Qd7 {[%clk 0:02:39]} 16. Qa4 {[%clk 0:02:17]}  Qe6 {[%clk 0:02:38]} 17. Be3 {[%clk 0:02:02]}  Bb3 {[%clk 0:02:30]} 18. Qh4 {[%clk 0:01:58]}  Qf6 {[%clk 0:02:19]} 19. Bg5 {[%clk 0:01:37]}  Qxb2 {[%clk 0:02:14]} 20. Rab1 {[%clk 0:01:38]}  Qa2 {[%clk 0:02:12]} 21. Bf6 {[%clk 0:01:28]}  Rxe2 {[%clk 0:01:59]} 22. Bxg7 {[%clk 0:01:11]}  Kxg7 {[%clk 0:02:00]} 23. Ng5 {[%clk 0:01:07]}  h6 {[%clk 0:01:54]} 24. Bxc6 {[%clk 0:01:04]}  hxg5 {[%clk 0:01:11]} 25. Qd4+ {[%clk 0:01:04]}  Kg8 {[%clk 0:01:10]} 26. Bxb7 {[%clk 0:01:04]}  Rae8 {[%clk 0:01:04]} 27. Bf3 {[%clk 0:01:00]}  Rd2 {[%clk 0:01:01]} 28. Qc5 {[%clk 0:00:59]}  Be6 {[%clk 0:00:54]} 29. Ra1 {[%clk 0:00:50]}  Qb3 {[%clk 0:00:51]} 30. Qxa5 {[%clk 0:00:49]}  Qxf3 {[%clk 0:00:46]} 31. Qxd2 {[%clk 0:00:44]}  Bh3 {[%clk 0:00:45]} 0-1


[Site "https://www.chess.com"]